bitfinex/quotes_SOLUSD_20251201
["timestamp","ask_amount","ask_price","bid_price","bid_amount"]
[1764562318107,12.04421318,127.0,126.96,16.308864]
[1764562318108,0.67,127.03,126.99,13.17711729]
[1764562318394,31.72312209,127.03,126.99,12.45711729]
[1764562318886,0.67,127.02,127.0,12.45711729]
[1764562319072,7.87273164,127.03,127.01,12.45711729]
[1764562319275,3.5,127.02,127.0,0.72]
[1764562320385,3.5,127.02,127.01,12.45711729]
[1764562320592,0.67,127.04,127.01,12.45711729]
[1764562320593,8.54174954,127.04,127.01,12.45711729]
[1764562320888,8.54174954,127.04,127.03,12.45711729]
[1764562321094,12.04174954,127.04,127.03,12.45711729]
[1764562321490,0.67,127.06,127.03,12.45711729]
[1764562321662,20.34477251,127.07,127.05,12.45711729]
[1764562321888,4.17,127.06,127.05,12.45711729]
[1764562322092,12.04029749,127.06,127.04,12.45711729]
[1764562322509,3.5,127.05,127.04,12.45711729]
[1764562322715,3.5,127.05,126.99,48.45130737]
[1764562322716,12.04091696,127.05,127.02,12.45711729]
[1764562323021,0.67,127.04,127.02,12.45711729]
[1764562323897,7.87215618,127.03,127.02,12.45711729]
[1764562324514,8.54215618,127.03,127.02,12.45711729]
[1764562324716,12.04215618,127.03,127.02,12.45711729]
[1764562326619,12.04215618,127.03,126.99,24.90312385]
[1764562326918,12.04215618,127.03,127.02,12.45711729]
[1764562327220,12.04215618,127.03,127.02,73.95711729]
[1764562329897,11.37215618,127.03,127.02,74.67711729]
[1764562330414,11.37215618,127.03,127.02,65.96604696]
[1764562330622,8.54215618,127.03,127.02,65.96604696]
[1764562330800,12.04215618,127.03,127.02,65.96604696]
[1764562331321,11.37215618,127.03,127.02,65.96604696]
[1764562331502,12.04215618,127.03,127.02,65.96604696]
[1764562332509,12.00215618,127.03,127.02,65.96604696]
[1764562334497,12.00215618,127.03,127.02,61.5]
[1764562334900,12.00215618,127.03,127.02,65.96604696]
[1764562336110,11.33215618,127.03,127.02,65.96604696]
[1764562336813,12.00215618,127.03,127.02,65.96604696]
[1764562338031,12.00215618,127.03,127.02,61.5]
[1764562341321,12.00215618,127.03,127.02,65.96604696]
[1764562346843,12.00215618,127.03,127.0,61.5]
[1764562347028,12.05215618,127.03,127.01,4.46604696]
[1764562347220,0.72,127.02,127.01,4.46604696]
[1764562347424,7.83215618,127.03,127.01,5.17604696]
[1764562347623,7.83215618,127.03,127.02,4.46604696]
[1764562347824,11.33215618,127.03,127.02,4.46604696]
[1764562348038,8.80994492,127.02,126.98,4.46604696]
[1764562348255,3.5,127.01,126.98,4.46604696]
[1764562348452,27.51254663,127.03,127.0,4.46604696]
[1764562348648,4.22,127.02,127.01,4.46604696]
[1764562348853,12.09277594,127.02,127.01,4.46604696]
[1764562349065,12.09277594,127.02,127.0,4.46604696]
[1764562349260,7.87277594,127.02,127.01,4.46604696]
[1764562349471,11.37277594,127.02,127.01,4.46604696]
[1764562349760,3.5,127.03,127.01,5.17604696]
[1764562349951,3.5,127.03,127.02,5.17604696]
[1764562350352,7.87112388,127.05,127.02,5.17604696]
[1764562350554,3.5,127.04,127.03,0.71]
[1764562350953,3.5,127.04,127.03,5.17604696]
[1764562351266,7.87112388,127.05,127.03,5.17604696]
[1764562351568,7.87112388,127.05,127.03,0.71]
[1764562351569,3.5,127.04,127.03,0.71]
[1764562352346,7.87037024,127.06,127.03,0.71]
[1764562352570,7.86996735,127.07,127.05,4.46604696]
[1764562352748,3.5,127.06,127.05,4.46604696]
[1764562353457,8.58996735,127.07,127.05,4.46604696]
[1764562353653,3.5,127.06,127.05,4.46604696]
[1764562355165,11.37029749,127.06,127.05,4.46604696]
[1764562355751,3.5,127.06,127.05,4.46604696]
[1764562355961,7.86931668,127.08,127.05,5.17604696]
[1764562356165,7.86931668,127.08,127.06,4.46604696]
[1764562356166,4.22,127.07,127.06,4.46604696]
[1764562357162,12.08967813,127.07,127.06,4.46604696]
[1764562357368,11.36967813,127.07,127.06,4.46604696]
[1764562357772,12.08967813,127.07,127.06,4.46604696]
[1764562358153,12.08967813,127.07,127.05,4.46604696]
[1764562358355,7.86951406,127.08,127.06,4.46604696]
[1764562358564,3.5,127.07,127.06,4.46604696]
[1764562358770,3.5,127.07,127.06,5.17604696]
[1764562359056,3.5,127.07,127.06,4.46604696]
[1764562362179,3.5,127.07,127.06,5.17604696]
[1764562363565,3.5,127.07,127.06,66.67604696]
[1764562363962,3.5,127.07,127.06,65.96604696]
[1764562364370,3.5,127.07,127.06,61.5]
[1764562364773,3.5,127.07,127.06,65.96604696]
[1764562366685,3.5,127.07,127.06,66.67604696]
[1764562367580,7.86951406,127.08,127.06,66.67604696]
[1764562367581,0.2,127.09,127.06,13.04618435]
[1764562367760,0.2,127.09,127.08,4.46604696]
[1764562367960,3.68,127.09,127.08,4.46604696]
[1764562368467,3.68,127.09,127.08,2.85636256]
[1764562370573,12.26843968,127.09,127.07,2.85636256]
[1764562371373,12.26843968,127.09,127.03,77.808864]
[1764562371374,0.72,127.08,127.04,0.71]
[1764562371581,3.48,127.07,127.06,2.85636256]
[1764562372387,3.48,127.07,127.06,3.56636256]
[1764562372588,3.48,127.07,127.06,65.06636256]
[1764562373191,3.48,127.07,127.06,64.35636256]
[1764562373883,3.48,127.07,127.06,61.5]
[1764562373884,12.06967813,127.07,127.06,61.5]
[1764562374266,11.34967813,127.07,127.06,61.5]
[1764562374483,11.34967813,127.07,127.06,64.35636256]
[1764562374863,20.87962305,127.07,127.06,61.5]
[1764562375479,23.73598561,127.07,127.06,61.5]
[1764562375690,20.87962305,127.07,127.06,61.5]
[1764562375884,8.80994492,127.06,127.02,64.35636256]
[1764562376087,8.80994492,127.04,126.98,0.67]
[1764562376272,3.48,127.03,127.0,2.85636256]
[1764562376471,4.17,127.03,127.0,2.85636256]
[1764562376667,0.69,127.02,127.0,2.85636256]
[1764562376873,3.48,127.01,127.0,2.85636256]
[1764562377292,11.35339579,127.01,127.0,2.85636256]
[1764562378086,3.48,127.01,127.0,3.52636256]
[1764562379697,3.48,127.01,127.0,2.85636256]
[1764562380276,12.04339579,127.01,126.98,2.85636256]
[1764562380590,0.69,127.0,126.97,2.85636256]
[1764562380792,0.69,127.0,126.98,2.85636256]
[1764562381186,0.69,127.0,126.98,64.35636256]
[1764562381931,7.87339579,127.01,126.99,2.85636256]
[1764562382098,3.48,127.0,126.99,0.67]
[1764562382297,8.56251893,127.03,126.98,61.5]
[1764562382597,3.48,127.02,126.98,61.5]
[1764562382797,3.48,127.02,126.99,0.67]
[1764562383400,3.48,127.02,127.01,2.85636256]
[1764562383896,3.48,127.02,127.0,2.85636256]
[1764562384798,3.48,127.02,127.01,2.85636256]
[1764562385097,3.48,127.02,126.99,70.04457443]
[1764562385309,0.69,127.01,126.99,61.5]
[1764562385878,3.54636256,127.01,126.99,61.5]
[1764562386078,0.69,127.01,126.99,61.5]
[1764562386280,0.69,127.01,126.98,2.85636256]
[1764562386501,0.69,127.01,126.97,2.85636256]
[1764562386702,0.69,127.01,126.96,65.02636256]
[1764562386703,2.85636256,127.0,126.96,65.02636256]
[1764562386900,3.48,126.99,126.96,65.02636256]
[1764562387094,4.17,126.99,126.96,61.5]
[1764562387402,0.69,126.98,126.96,61.5]
[1764562387591,12.04524122,126.99,126.96,61.5]
[1764562387784,12.04524122,126.99,126.96,64.35636256]
[1764562388291,12.04524122,126.99,126.93,2.85636256]
[1764562388292,11.66630748,126.97,126.93,2.85636256]
[1764562388492,3.48,126.96,126.93,64.35636256]
[1764562388700,4.17,126.96,126.94,2.85636256]
[1764562389288,7.87711697,126.95,126.94,2.85636256]
[1764562390090,11.35711697,126.95,126.94,2.85636256]
[1764562390291,7.87711697,126.95,126.94,2.85636256]
[1764562390501,11.35711697,126.95,126.94,2.85636256]
[1764562390703,11.35711697,126.95,126.94,64.35636256]
[1764562390907,11.35711697,126.95,126.94,61.5]
[1764562391099,3.48,126.95,126.94,61.5]
[1764562391302,3.48,126.95,126.94,64.35636256]
[1764562391509,11.35711697,126.95,126.94,64.35636256]
[1764562392806,3.48,126.95,126.94,65.02636256]
[1764562393188,7.87525594,126.98,126.94,65.02636256]
[1764562393394,3.5,126.97,126.96,2.85636256]
[1764562394098,12.06587619,126.97,126.95,61.5]
[1764562394310,3.5,126.96,126.95,61.5]
[1764562394604,12.99994492,126.96,126.95,61.5]
[1764562394909,12.99994492,126.96,126.92,64.35636256]
[1764562395089,12.99994492,126.96,126.92,65.02636256]
[1764562395090,0.69,126.95,126.92,65.02636256]
[1764562395515,7.87773751,126.94,126.93,2.85636256]
[1764562395703,3.5,126.96,126.93,3.52636256]
[1764562396092,11.37668385,126.96,126.93,3.52636256]
[1764562396292,3.5,126.95,126.93,3.52636256]
[1764562396693,3.5,126.96,126.94,3.52636256]
[1764562396925,3.5,126.96,126.95,2.85636256]
[1764562397095,3.5,126.96,126.95,65.02636256]
[1764562397589,7.87525594,126.98,126.95,65.02636256]
[1764562397816,3.5,126.97,126.96,0.67]
[1764562399616,3.5,126.97,126.96,3.52636256]
[1764562402418,3.5,126.97,126.96,0.67]
[1764562402625,3.5,126.97,126.94,65.02636256]
[1764562403106,3.5,126.97,126.95,3.52636256]
[1764562403611,3.5,126.97,126.96,0.67]
[1764562404133,11.37559735,126.98,126.96,3.52636256]
[1764562404505,11.37559735,126.98,126.97,0.67]
[1764562406424,3.5,126.99,126.97,3.52636256]
[1764562406953,3.5,126.99,126.91,0.71]
[1764562406954,16.308864,126.97,126.91,0.71]
[1764562407110,2.85636256,126.95,126.91,0.71]
[1764562407431,15.82630748,126.96,126.91,0.71]
[1764562407723,0.66,126.95,126.91,0.71]
[1764562407935,3.51636256,126.95,126.91,0.71]
[1764562408134,2.85636256,126.94,126.9,0.1]
[1764562408323,14.23472071,126.93,126.9,0.81]
[1764562408524,3.5,126.92,126.9,0.81]
[1764562408826,3.5,126.92,126.9,3.66636256]
[1764562409228,3.5,126.92,126.91,0.71]
[1764562409606,3.5,126.92,126.91,3.56636256]
[1764562410036,3.5,126.92,126.9,2.95636256]
[1764562410215,8.53959971,126.91,126.9,0.1]
[1764562410530,7.87959971,126.91,126.9,0.1]
[1764562410711,11.37959971,126.91,126.9,0.1]
[1764562411316,3.5,126.94,126.9,166.01]
[1764562411520,3.5,126.94,126.9,168.86636256]
[1764562411714,4.16,126.94,126.91,3.56636256]
[1764562411924,7.87662332,126.96,126.93,2.85636256]
[1764562412112,3.5,126.96,126.94,2.85636256]
[1764562412519,14.23291596,126.96,126.92,2.85636256]
[1764562412717,14.23291596,126.96,126.92,3.56636256]
[1764562412718,0.66,126.95,126.92,3.56636256]
[1764562412927,14.89291596,126.96,126.92,3.56636256]
[1764562413546,33.92415729,126.96,126.9,0.1]
[1764562413845,0.66,126.95,126.92,2.85636256]
[1764562414414,7.87773751,126.94,126.92,2.85636256]
[1764562414614,3.5,126.93,126.92,2.85636256]
[1764562415322,3.5,126.93,126.91,3.56636256]
[1764562415525,3.5,126.93,126.92,2.85636256]
[1764562416223,4.16,126.93,126.9,2.95636256]
[1764562416433,3.5,126.93,126.91,2.85636256]
[1764562416626,11.37845016,126.93,126.91,2.85636256]
[1764562416827,12.03845016,126.93,126.9,2.95636256]
[1764562417517,3.51636256,126.92,126.9,61.6]
[1764562417711,3.51636256,126.92,126.9,0.1]
[1764562417933,0.66,126.91,126.9,0.1]
[1764562418113,4.16,126.91,126.9,0.1]
[1764562418510,12.03959971,126.91,126.9,0.1]
[1764562418931,20.84954463,126.91,126.9,0.1]
[1764562419522,23.70590719,126.91,126.9,0.1]
[1764562420225,20.20590719,126.91,126.9,0.1]
[1764562420434,23.70590719,126.91,126.9,0.1]
[1764562421339,12.03959971,126.91,126.9,0.1]
[1764562421516,20.84954463,126.91,126.9,0.1]
[1764562421716,23.70590719,126.91,126.9,0.1]
[1764562422344,23.70590719,126.91,126.89,0.1]
[1764562422345,8.80994492,126.9,126.89,0.1]
[1764562422545,12.32630748,126.9,126.89,0.1]
[1764562424137,20.20652812,126.9,126.89,0.1]
[1764562424927,17.35016556,126.9,126.89,0.1]
[1764562425134,20.20652812,126.9,126.89,0.1]
[1764562426649,17.35016556,126.9,126.89,0.1]
[1764562426847,7.88022064,126.9,126.89,0.1]
[1764562427155,11.38022064,126.9,126.89,0.1]
[1764562429355,12.04022064,126.9,126.89,0.1]
[1764562429554,11.38022064,126.9,126.89,0.1]
[1764562430954,8.54022064,126.9,126.89,0.1]
[1764562431154,11.38022064,126.9,126.89,0.1]
[1764562432238,11.38022064,126.9,126.89,61.6]
[1764562432733,12.04022064,126.9,126.89,61.6]
[1764562434474,25.32771772,126.9,126.89,61.6]
[1764562434757,61.33713333,126.9,126.86,0.1]
[1764562434966,13.28749708,126.87,126.86,0.1]
[1764562435131,16.78749708,126.87,126.86,0.1]
[1764562435457,17.44749708,126.87,126.86,0.1]
[1764562436360,25.3295811,126.87,126.86,0.1]
[1764562436740,8.80994492,126.86,126.84,0.1]
[1764562436930,8.80994492,126.84,126.82,0.1]
[1764562437152,8.80994492,126.82,126.77,0.1]
[1764562437454,33.09636108,126.83,126.77,0.1]
[1764562437455,8.80994492,126.8,126.77,4.57755216]
[1764562437668,0.71,126.82,126.77,0.81]
[1764562437855,13.28749708,126.81,126.77,5.28755216]
[1764562438151,8.80994492,126.81,126.77,5.28755216]
[1764562438352,8.80994492,126.81,126.78,0.71]
[1764562438657,3.5,126.8,126.79,4.47755216]
[1764562438858,39.41042011,126.87,126.79,4.47755216]
[1764562438859,0.71,126.86,126.79,4.47755216]
[1764562439030,11.38341459,126.85,126.82,4.47755216]
[1764562439231,8.80994492,126.82,126.78,0.71]
[1764562439428,3.5,126.81,126.8,4.47755216]
[1764562439643,3.5,126.81,126.79,5.18755216]
[1764562439846,13.99749708,126.84,126.8,5.18755216]
[1764562440061,24.19227859,126.85,126.81,4.47755216]
[1764562440242,3.54,126.84,126.81,5.18755216]
[1764562440551,11.42405297,126.84,126.82,0.71]
[1764562441058,7.88405297,126.84,126.82,5.18755216]
[1764562441260,36.01658641,126.86,126.83,4.47755216]
[1764562441261,7.88320588,126.86,126.83,4.47755216]
[1764562441566,7.88196246,126.88,126.85,4.47755216]
[1764562441749,7.88196246,126.88,126.87,4.47755216]
[1764562442052,3.54,126.88,126.87,4.47755216]
[1764562442251,3.54,126.88,126.87,5.18755216]
[1764562443154,3.54,126.88,126.83,36.02013959]
[1764562443375,11.42146279,126.88,126.84,0.71]
[1764562443740,11.42146279,126.88,126.85,4.47755216]
[1764562443958,11.42146279,126.88,126.84,5.18755216]
[1764562444260,11.42146279,126.88,126.85,4.47755216]
[1764562444579,4.47755216,126.86,126.82,5.18755216]
[1764562444859,4.47755216,126.84,126.8,4.79316216]
[1764562445051,8.72755216,126.85,126.8,4.79316216]
[1764562445242,0.71,126.84,126.8,4.79316216]
[1764562445435,25.11880892,126.86,126.83,4.47755216]
[1764562445436,16.308864,126.86,126.83,4.47755216]
[1764562445634,3.54,126.85,126.83,4.47755216]
[1764562445853,3.54,126.85,126.78,7.8875347]
[1764562446059,3.54,126.85,126.82,4.47755216]
[1764562446552,11.42347261,126.85,126.82,4.47755216]
[1764562446947,11.42347261,126.85,126.82,5.18755216]
[1764562447536,11.42347261,126.85,126.82,0.71]
[1764562447872,31.13178951,126.85,126.82,0.71]
[1764562448042,0.71,126.84,126.81,4.47755216]
[1764562448233,31.13178951,126.85,126.82,0.71]
[1764562448438,31.84178951,126.85,126.82,0.71]
[1764562449479,12.4841153,126.84,126.8,0.71]
[1764562449656,13.1941153,126.84,126.8,0.71]
[1764562450867,7.88456989,126.83,126.8,13.1941153]
[1764562451045,3.54,126.82,126.8,0.71]
[1764562451240,3.54,126.82,126.81,0.71]
[1764562451447,7.88456989,126.83,126.81,0.71]
[1764562451763,21.29406022,126.86,126.81,0.71]
[1764562451954,3.54,126.85,126.81,13.1941153]
[1764562452345,3.54,126.85,126.82,0.71]
[1764562453045,11.42376406,126.85,126.82,0.71]
[1764562453237,23.90787936,126.85,126.82,0.71]
[1764562453445,24.61787936,126.85,126.81,16.308864]
[1764562453664,22.00406022,126.84,126.79,12.4841153]
[1764562453963,12.4841153,126.82,126.77,0.81]
[1764562454260,3.54,126.81,126.77,0.81]
[1764562454439,16.7341153,126.81,126.77,0.81]
[1764562454637,13.1941153,126.8,126.77,0.1]
[1764562454841,7.88705733,126.79,126.77,0.1]
[1764562455051,3.54,126.78,126.77,0.1]
[1764562455250,3.54,126.78,126.77,0.81]
[1764562457564,11.42767944,126.78,126.77,0.81]
[1764562457744,7.88767944,126.78,126.77,0.1]
[1764562457944,23.91179474,126.78,126.77,0.1]
[1764562458152,8.80994492,126.74,126.67,0.71]
[1764562458463,8.80994492,126.75,126.7,12.4841153]
[1764562458639,3.54,126.73,126.7,12.4841153]
[1764562458839,3.54,126.73,126.71,0.71]
[1764562459261,11.43098267,126.73,126.71,0.71]
[1764562459462,3.54,126.72,126.71,0.71]
[1764562459864,3.54,126.73,126.71,0.71]
[1764562461454,3.54,126.73,126.71,13.1941153]
[1764562461650,7.88892395,126.76,126.72,13.1941153]
[1764562461856,3.54,126.75,126.73,12.4841153]
[1764562462171,3.54,126.75,126.73,0.71]
[1764562462463,16.7341153,126.75,126.71,0.71]
[1764562462967,7.89016884,126.74,126.71,0.71]
[1764562463348,8.60016884,126.74,126.7,77.808864]
[1764562463555,20.37428414,126.74,126.71,0.71]
[1764562463748,7.89016884,126.74,126.71,0.71]
[1764562463949,7.89016884,126.74,126.71,13.1941153]
[1764562463950,3.54,126.73,126.71,13.1941153]
[1764562464348,3.54,126.73,126.72,0.71]
[1764562464571,3.54,126.74,126.72,13.1941153]
[1764562464765,19.72230987,126.76,126.72,74.6941153]
[1764562464766,7.88913884,126.76,126.72,74.6941153]
[1764562465065,3.54,126.75,126.73,0.71]
[1764562466768,7.8885259,126.77,126.73,13.1941153]
[1764562466972,7.88767944,126.78,126.74,12.4841153]
[1764562467268,3.52,126.78,126.76,12.4841153]
[1764562467467,7.8866445,126.8,126.76,12.4841153]
[1764562467663,3.52,126.78,126.77,0.71]
[1764562468869,7.8866445,126.8,126.77,0.71]
[1764562468870,7.88604381,126.81,126.77,8.59778556]
[1764562469069,3.52,126.81,126.79,12.4841153]
[1764562469275,3.52,126.81,126.78,13.1941153]
[1764562469670,3.52,126.82,126.79,17.018864]
[1764562469856,3.52,126.82,126.79,29.5029793]
[1764562470053,3.52,126.82,126.79,16.308864]
[1764562470259,3.52,126.82,126.79,17.018864]
[1764562470464,11.40565438,126.82,126.79,0.71]
[1764562470664,3.52,126.84,126.8,17.018864]
[1764562470859,3.52,126.84,126.81,12.4841153]
[1764562471072,3.52,126.84,126.81,13.1941153]
[1764562471372,3.52,126.84,126.81,12.4841153]
[1764562471581,3.52,126.84,126.81,13.1941153]
[1764562471776,40.2714847,126.87,126.82,0.71]
[1764562471965,3.52,126.86,126.82,0.71]
[1764562472166,3.52,126.86,126.82,13.1941153]
[1764562472478,3.52,126.86,126.82,0.71]
[1764562472479,4.23,126.86,126.82,0.71]
[1764562472660,4.23,126.86,126.8,0.71]
[1764562472661,13.1941153,126.85,126.8,0.71]
[1764562473256,12.4841153,126.85,126.8,13.1941153]
[1764562473456,13.1941153,126.85,126.8,13.1941153]
[1764562473767,12.4841153,126.85,126.79,28.7929793]
[1764562473954,13.1941153,126.84,126.8,0.71]
[1764562474155,3.52,126.83,126.8,0.71]
[1764562474557,12.11502206,126.83,126.8,0.71]
[1764562474866,24.59913736,126.83,126.79,17.018864]
[1764562475261,12.4841153,126.82,126.79,0.71]
[1764562475467,13.1941153,126.82,126.77,36.68105801]
[1764562475661,13.1941153,126.82,126.78,0.71]
[1764562476271,0.71,126.82,126.78,0.71]
[1764562476582,8.59580101,126.82,126.78,0.71]
[1764562476773,8.80994492,126.85,126.79,12.4841153]
[1764562476774,3.52,126.81,126.79,12.4841153]
[1764562477171,3.52,126.81,126.8,0.71]
[1764562478877,3.52,126.81,126.79,20.37109089]
[1764562479085,3.52,126.81,126.8,0.71]
[1764562479801,7.88478063,126.83,126.81,57.98]
[1764562479970,3.52,126.82,126.81,57.98]
[1764562480170,7.88394828,126.84,126.81,57.98]
[1764562480389,3.52,126.83,126.82,0.71]
[1764562480571,3.52,126.83,126.82,58.69]
[1764562480964,0.2,126.87,126.82,13.1941153]
[1764562481163,3.72,126.87,126.83,13.1941153]
[1764562481668,3.72,126.87,126.84,0.71]
[1764562482007,11.60228141,126.87,126.84,13.1941153]
[1764562482491,11.60228141,126.87,126.85,0.71]
[1764562483371,0.2,126.87,126.84,13.1941153]
[1764562483572,3.72,126.87,126.84,13.1941153]
[1764562484086,3.72,126.87,126.84,12.4841153]
[1764562484294,11.60217385,126.87,126.84,13.1941153]
[1764562484887,11.60217385,126.87,126.84,12.4841153]
[1764562485091,3.72,126.87,126.85,0.71]
[1764562485686,0.2,126.87,126.86,12.4841153]
[1764562485893,0.2,126.87,126.86,0.71]
[1764562487180,0.2,126.87,126.86,8.59270534]
[1764562490099,0.2,126.87,126.86,0.71]
[1764562490394,0.2,126.87,126.84,0.71]
[1764562490597,0.2,126.87,126.85,0.71]
[1764562491494,3.52,126.88,126.87,61.3]
[1764562492788,11.48322979,126.88,126.87,61.3]
[1764562493595,7.96322979,126.88,126.87,61.3]
[1764562493800,11.48322979,126.88,126.85,8.59307761]
[1764562493998,3.52,126.88,126.85,8.59307761]
[1764562494533,8.67322979,126.87,126.83,0.71]
[1764562494692,8.67322979,126.87,126.84,0.71]
[1764562494889,7.96322979,126.86,126.84,17.018864]
[1764562495084,8.67322979,126.87,126.84,17.018864]
[1764562495291,7.96322979,126.86,126.82,24.90405561]
[1764562495502,11.48322979,126.85,126.81,7.88561143]
[1764562495678,7.96322979,126.83,126.81,0.71]
[1764562497106,12.16322979,126.82,126.78,0.72]
[1764562497410,7.96322979,126.8,126.78,0.72]
[1764562497982,7.96322979,126.8,126.75,3.52]
[1764562497983,12.16322979,126.79,126.75,7.8893478]
[1764562498194,7.96322979,126.78,126.74,0.72]
[1764562498508,4.2,126.79,126.74,0.72]
[1764562498509,8.64322979,126.77,126.74,0.72]
[1764562498809,8.64322979,126.77,126.72,8.61141414]
[1764562498810,11.48322979,126.76,126.72,8.61141414]
[1764562498986,11.48322979,126.76,126.73,17.028864]
[1764562499610,7.96322979,126.75,126.71,8.61179129]
[1764562499806,8.64322979,126.75,126.71,8.61179129]
[1764562499983,7.96322979,126.74,126.71,24.92065529]
[1764562500190,8.64322979,126.75,126.71,24.92065529]
[1764562500406,7.96322979,126.74,126.71,8.61179129]
[1764562500799,8.64322979,126.75,126.71,24.92065529]
[1764562501022,3.52,126.74,126.71,24.92065529]
[1764562501392,15.85160585,126.77,126.72,8.68322979]
[1764562501621,0.68,126.78,126.75,16.308864]
[1764562501913,3.52,126.78,126.75,181.308864]
[1764562502111,11.48322979,126.8,126.76,0.72]
[1764562502322,7.96322979,126.78,126.75,189.1980207]
[1764562502487,7.96322979,126.78,126.75,172.8891567]
[1764562502688,4.2,126.77,126.75,172.8891567]
[1764562503205,3.52,126.77,126.75,172.8891567]
[1764562503406,7.88602187,126.81,126.78,61.3]
[1764562503716,0.68,126.82,126.78,165.0]
[1764562503889,31.19499317,126.83,126.78,0.72]
[1764562503890,0.68,126.81,126.78,0.72]
[1764562504089,8.64322979,126.82,126.78,8.6074234]
[1764562504500,8.64322979,126.81,126.77,69.90808972]
[1764562505095,0.68,126.81,126.78,0.72]
[1764562505409,8.56596404,126.81,126.78,0.72]
[1764562505616,7.96322979,126.79,126.74,16.308864]
[1764562505908,3.52,126.78,126.75,0.72]
[1764562506211,0.68,126.8,126.75,8.68322979]
[1764562506412,3.52,126.79,126.75,8.68322979]
[1764562506615,3.52,126.79,126.76,8.60887848]
[1764562507007,11.4065841,126.8,126.77,0.72]
[1764562507391,12.0865841,126.8,126.77,0.72]
[1764562507719,39.08590221,126.8,126.75,61.3]
[1764562507894,0.68,126.79,126.75,61.3]
[1764562508217,7.96322979,126.77,126.75,61.3]
[1764562508420,3.52,126.77,126.73,17.028864]
[1764562508619,0.68,126.77,126.73,17.028864]
[1764562508796,4.2,126.77,126.74,0.72]
[1764562509307,3.52,126.77,126.74,0.72]
[1764562509532,0.68,126.79,126.74,8.68322979]
[1764562509692,3.52,126.78,126.75,7.88954635]
[1764562509898,3.52,126.78,126.74,0.72]
[1764562509899,7.887957,126.78,126.74,0.72]
[1764562510100,20.05118679,126.78,126.74,0.72]
[1764562510290,19.37118679,126.78,126.73,16.308864]
[1764562510499,8.64322979,126.77,126.73,16.308864]
[1764562510699,8.64322979,126.77,126.73,17.028864]
[1764562510901,8.64322979,126.76,126.73,61.3]
[1764562511223,3.52,126.75,126.73,61.3]
[1764562511818,20.05297164,126.75,126.73,61.3]
[1764562512404,20.05297164,126.75,126.72,77.608864]
[1764562512601,0.68,126.74,126.72,77.608864]
[1764562513231,0.68,126.74,126.72,61.3]
[1764562513744,8.64322979,126.74,126.72,61.3]
[1764562513915,16.53350066,126.74,126.72,61.3]
[1764562514412,0.68,126.73,126.7,61.3]
[1764562514616,0.68,126.73,126.69,61.3]
[1764562514617,7.96322979,126.71,126.69,61.3]
[1764562514926,3.52,126.72,126.7,8.68322979]
[1764562515309,3.52,126.73,126.7,0.72]
[1764562515509,8.64322979,126.74,126.7,0.72]
[1764562515822,11.41096237,126.73,126.7,62.02]
[1764562516017,19.37419216,126.73,126.7,61.3]
[1764562516328,0.68,126.72,126.7,61.3]
[1764562516931,7.96322979,126.71,126.68,61.3]
[1764562517111,11.48322979,126.7,126.68,61.3]
[1764562517630,0.68,126.7,126.66,17.028864]
[1764562517812,3.52,126.69,126.66,17.028864]
[1764562518008,11.41342885,126.69,126.66,17.028864]
[1764562518207,11.41342885,126.69,126.63,19.7417028]
[1764562518208,7.96322979,126.67,126.62,4.84898556]
[1764562518423,8.80994492,126.63,126.62,4.84898556]
[1764562518622,16.77317471,126.63,126.62,4.84898556]
[1764562518822,8.64322979,126.67,126.62,5.56898556]
[1764562519015,0.68,126.67,126.63,0.72]
[1764562519215,20.29317471,126.68,126.63,0.72]
[1764562519420,0.68,126.67,126.62,12.81221535]